bitfinex/quotes_SOLUSD_20250920
["timestamp","ask_amount","ask_price","bid_price","bid_amount"]
[1758371245206,3.51374928,237.9,237.89,45.71559401]
[1758371245402,3.51374928,237.9,237.84,13.59559401]
[1758371245403,4.89344682,237.9,237.84,13.59559401]
[1758371245604,5.49569521,237.89,237.84,13.59559401]
[1758371245807,3.51374928,237.88,237.86,13.59559401]
[1758371246107,2.82374928,237.88,237.87,32.12]
[1758371246292,2.82374928,237.89,237.87,32.12]
[1758371246491,7.7471961,237.88,237.87,32.12]
[1758371246702,3.54374928,237.88,237.87,32.12]
[1758371246889,0.72,237.88,237.87,32.12]
[1758371247093,3.54374928,237.88,237.87,32.12]
[1758371247292,0.72,237.88,237.87,32.12]
[1758371247608,7.74754951,237.88,237.87,32.12]
[1758371248004,4.92380023,237.88,237.87,32.12]
[1758371248316,7.74754951,237.88,237.87,32.12]
[1758371250120,7.02754951,237.88,237.87,32.12]
[1758371250306,2.82374928,237.88,237.87,48.32753994]
[1758371250615,2.82374928,237.9,237.87,48.32753994]
[1758371250795,2.82374928,237.89,237.87,48.32753994]
[1758371251110,2.82374928,237.9,237.87,48.32753994]
[1758371251316,2.82374928,237.89,237.87,48.32753994]
[1758371251612,2.82374928,237.9,237.87,47.69753994]
[1758371251792,2.82374928,237.89,237.87,47.69753994]
[1758371251991,2.82374928,237.9,237.87,47.69753994]
[1758371252214,2.82374928,237.89,237.87,47.69753994]
[1758371252396,2.82374928,237.9,237.87,47.69753994]
[1758371254214,2.82374928,237.9,237.88,4.20380023]
[1758371254513,2.82374928,237.9,237.89,32.75]
[1758371254712,2.82374928,237.92,237.89,32.12]
[1758371254913,2.82374928,237.91,237.89,32.12]
[1758371255914,2.82374928,237.93,237.89,32.12]
[1758371256093,2.82374928,237.92,237.89,32.12]
[1758371256288,2.82374928,237.91,237.89,32.12]
[1758371256488,2.82374928,237.92,237.89,32.12]
[1758371256685,2.82374928,237.91,237.89,32.12]
[1758371256901,2.82374928,237.92,237.89,32.12]
[1758371257102,2.82374928,237.91,237.89,32.12]
[1758371257408,0.72,237.91,237.89,32.12]
[1758371258927,3.54374928,237.91,237.89,32.12]
[1758371259131,0.72,237.91,237.89,32.12]
[1758371259427,3.54374928,237.91,237.89,32.12]
[1758371260922,2.82374928,237.91,237.9,13.59559401]
[1758371261125,7.02692949,237.92,237.89,32.12]
[1758371261302,2.82374928,237.91,237.89,32.12]
[1758371261702,0.72,237.9,237.89,32.12]
[1758371264928,3.54374928,237.9,237.89,32.12]
[1758371266505,0.72,237.9,237.89,32.12]
[1758371266906,3.53981055,237.9,237.89,32.12]
[1758371270227,7.74325737,237.9,237.89,32.12]
[1758371271614,7.74325737,237.9,237.82,4.20471675]
[1758371271820,3.53981055,237.89,237.84,13.59559401]
[1758371272028,2.81981055,237.88,237.85,32.12]
[1758371272337,7.74388737,237.87,237.85,32.12]
[1758371272509,7.74388737,237.87,237.81,4.83501763]
[1758371272510,3.53981055,237.86,237.83,13.59559401]
[1758371272722,2.81981055,237.85,237.84,45.71559401]
[1758371273018,3.53981055,237.85,237.84,45.71559401]
[1758371274029,3.53981055,237.85,237.84,13.59559401]
[1758371274215,3.53981055,237.85,237.84,45.71559401]
[1758371274533,7.74414101,237.85,237.84,45.71559401]
[1758371276042,7.74414101,237.85,237.8,0.63]
[1758371276224,2.81981055,237.84,237.82,13.59559401]
[1758371276430,0.66,237.84,237.83,45.71559401]
[1758371277930,4.86450723,237.84,237.83,45.71559401]
[1758371278328,4.20435222,237.85,237.83,45.71559401]
[1758371278525,7.6847693,237.85,237.83,45.71559401]
[1758371278727,4.86435222,237.85,237.83,45.71559401]
[1758371278928,0.66,237.84,237.83,45.71559401]
[1758371282027,4.86450723,237.84,237.83,45.71559401]
[1758371282436,7.68441093,237.84,237.83,45.71559401]
[1758371282636,4.86450723,237.84,237.83,45.71559401]
[1758371282957,4.86450723,237.84,237.77,2.8268296]
[1758371283143,4.75866985,237.83,237.79,13.59559401]
[1758371283453,3.4899037,237.82,237.8,32.12]
[1758371283626,1.93876615,237.81,237.74,13.59559401]
[1758371283829,45.9157753,237.84,237.76,13.59559401]
[1758371283830,1.93876615,237.8,237.76,13.59559401]
[1758371284150,4.87539131,237.79,237.77,32.12]
[1758371284658,4.87523349,237.8,237.77,32.12]
[1758371285254,0.67,237.8,237.77,32.12]
[1758371285460,31.87,237.84,237.78,14.22559401]
[1758371285755,4.7553235,237.83,237.79,32.12]
[1758371285954,0.67,237.82,237.79,32.12]
[1758371286156,0.67,237.81,237.79,32.12]
[1758371286371,0.67,237.8,237.79,45.71559401]
[1758371288558,6.14362696,237.82,237.79,45.71559401]
[1758371288761,0.67,237.81,237.79,45.71559401]
[1758371289239,5.47362696,237.82,237.79,45.71559401]
[1758371289443,0.67,237.81,237.79,45.71559401]
[1758371289760,5.47362696,237.82,237.79,45.71559401]
[1758371289761,0.67,237.8,237.79,45.71559401]
[1758371290053,4.87521446,237.8,237.74,1.89876615]
[1758371290269,4.87521446,237.8,237.76,13.59559401]
[1758371290552,4.87521446,237.8,237.77,32.12]
[1758371290553,0.67,237.79,237.77,32.12]
[1758371290758,0.67,237.78,237.77,32.12]
[1758371291159,6.14398061,237.8,237.77,32.12]
[1758371291461,0.67,237.79,237.77,32.12]
[1758371292149,4.87553032,237.79,237.77,32.12]
[1758371296759,4.20521446,237.8,237.77,32.12]
[1758371297063,5.47398061,237.8,237.77,32.12]
[1758371297261,0.67,237.79,237.77,32.12]
[1758371297763,4.87542045,237.79,237.77,32.12]
[1758371298559,4.20522587,237.8,237.77,32.12]
[1758371298758,4.87522587,237.8,237.77,32.12]
[1758371302061,0.67,237.79,237.77,32.12]
[1758371302250,4.20539181,237.79,237.77,32.12]
[1758371303465,4.20521446,237.8,237.77,32.12]
[1758371303668,0.67,237.79,237.77,32.12]
[1758371304963,0.44231727,237.79,237.77,32.12]
[1758371306047,4.64774963,237.79,237.77,32.12]
[1758371306340,4.20543236,237.79,237.77,32.12]
[1758371307872,4.92543236,237.79,237.77,32.12]
[1758371308058,0.72,237.78,237.77,32.12]
[1758371310459,4.20543236,237.79,237.77,32.12]
[1758371310650,4.92543236,237.79,237.77,32.12]
[1758371311770,4.20543236,237.79,237.77,32.12]
[1758371312144,1.26876615,237.8,237.78,0.68]
[1758371312348,7.01995788,237.81,237.79,32.8]
[1758371312583,7.01995788,237.81,237.79,32.12]
[1758371313060,7.73995788,237.81,237.79,32.12]
[1758371313581,0.72,237.8,237.75,0.68]
[1758371313760,0.72,237.8,237.76,32.8]
[1758371313960,0.72,237.8,237.77,32.12]
[1758371315286,4.92534409,237.8,237.77,32.12]
[1758371317290,7.74018075,237.8,237.77,32.12]
[1758371318483,2.81483666,237.8,237.77,32.12]
[1758371318685,3.53483666,237.8,237.77,32.12]
[1758371321392,7.7401285,237.8,237.77,32.12]
[1758371321570,7.0201285,237.8,237.78,0.68]
[1758371321770,7.0201285,237.8,237.77,32.12]
[1758371321988,7.0201285,237.8,237.77,32.8]
[1758371322290,2.81483666,237.79,237.77,32.8]
[1758371323081,2.81483666,237.79,237.77,32.12]
[1758371324079,4.20529184,237.8,237.77,32.12]
[1758371324289,2.82221211,237.79,237.77,32.12]
[1758371324494,4.92529184,237.8,237.77,32.12]
[1758371324695,2.8222121,237.79,237.77,32.12]
[1758371324889,4.92529184,237.8,237.77,32.12]
[1758371325087,2.8222121,237.79,237.77,32.12]
[1758371325387,4.92529184,237.8,237.77,32.12]
[1758371325589,2.82226143,237.79,237.77,32.12]
[1758371325788,4.92529184,237.8,237.77,32.12]
[1758371326093,2.82295566,237.79,237.77,32.12]
[1758371326399,4.92529184,237.8,237.77,32.12]
[1758371326697,2.82399736,237.79,237.77,32.12]
[1758371326882,4.92529184,237.8,237.77,32.12]
[1758371327083,2.82411612,237.79,237.77,32.12]
[1758371327286,2.82411612,237.78,237.77,32.12]
[1758371332593,2.82411612,237.78,237.77,32.8]
[1758371332901,2.82411612,237.78,237.77,32.12]
[1758371334901,2.82411612,237.78,237.77,32.8]
[1758371336904,39.5,237.82,237.78,13.59559401]
[1758371337112,2.8262578,237.81,237.8,14.86436016]
[1758371337405,2.8262578,237.81,237.8,47.67436016]
[1758371338598,2.8262578,237.85,237.81,13.59559401]
[1758371338815,2.8262578,237.84,237.81,13.59559401]
[1758371338992,3.5462578,237.83,237.82,32.12]
[1758371340309,7.75094181,237.83,237.82,32.12]
[1758371346822,7.03094181,237.83,237.82,32.12]
[1758371346994,7.73094181,237.83,237.82,32.12]
[1758371348019,2.8262578,237.83,237.82,32.12]
[1758371348322,3.5262578,237.83,237.82,32.12]
[1758371349522,2.8262578,237.83,237.82,32.12]
[1758371352306,3.5262578,237.83,237.82,32.12]
[1758371356339,41.48282798,237.86,237.82,32.12]
[1758371356340,2.8262578,237.85,237.82,46.38559401]
[1758371356519,3.52219009,237.84,237.82,45.71559401]
[1758371356698,2.82219009,237.83,237.79,0.67]
[1758371356892,2.82238208,237.82,237.8,32.18]
[1758371357099,1.98282798,237.82,237.81,32.18]
[1758371357300,5.50549256,237.82,237.76,13.59559401]
[1758371357603,5.50549256,237.81,237.77,32.18]
[1758371357923,3.52266458,237.8,237.77,32.18]
[1758371358106,2.82266458,237.79,237.77,32.18]
[1758371358312,0.7,237.8,237.77,32.18]
[1758371358507,2.82261166,237.79,237.77,32.18]
[1758371358723,0.7,237.8,237.77,32.18]
[1758371358914,3.52261166,237.79,237.78,32.18]
[1758371359520,2.82261166,237.79,237.78,32.18]
[1758371361000,2.82261166,237.79,237.78,32.85]
[1758371361302,2.82261166,237.79,237.78,32.18]
[1758371361927,2.82261166,237.79,237.78,32.85]
[1758371362229,2.82261166,237.82,237.78,32.85]
[1758371362406,5.95453622,237.81,237.79,0.67]
[1758371362722,2.82261166,237.8,237.79,0.67]
[1758371363299,2.82261166,237.8,237.78,32.18]
[1758371363621,2.82261166,237.79,237.78,45.77559401]
[1758371363827,4.90487432,237.82,237.78,45.77559401]
[1758371363828,2.82261166,237.81,237.78,45.77559401]
[1758371364115,2.82261166,237.8,237.78,45.77559401]
[1758371364318,2.82261166,237.79,237.78,45.77559401]
[1758371364521,2.82261166,237.81,237.78,45.77559401]
[1758371364704,2.82261166,237.8,237.78,45.77559401]
[1758371364907,2.82261166,237.79,237.78,45.77559401]
[1758371365825,2.82261166,237.81,237.78,45.77559401]
[1758371366029,2.82261166,237.8,237.78,45.77559401]
[1758371366328,2.82261166,237.79,237.78,45.77559401]
[1758371366828,2.82261166,237.8,237.78,45.77559401]
[1758371367015,2.82261166,237.79,237.78,45.77559401]
[1758371369423,2.82261166,237.81,237.79,13.59559401]
[1758371369630,39.5,237.84,237.8,32.87]
[1758371369831,5.95670848,237.83,237.8,32.87]
[1758371370032,2.82369094,237.82,237.8,32.87]
[1758371370217,2.82369094,237.81,237.8,45.75559401]
[1758371374034,2.82369094,237.81,237.8,48.44842199]
[1758371375039,2.82369094,237.81,237.8,52.65363645]
[1758371377026,2.82369094,237.84,237.81,13.59559401]
[1758371377234,2.82369094,237.83,237.82,34.83282798]
[1758371377415,2.82369094,237.85,237.82,34.83282798]
[1758371377616,2.82369094,237.84,237.82,34.83282798]
[1758371377816,2.82369094,237.83,237.82,34.83282798]
[1758371378016,2.82369094,237.85,237.82,34.83282798]
[1758371378213,2.82369094,237.84,237.82,34.12282798]
[1758371378418,2.82369094,237.83,237.82,34.12282798]
[1758371378619,2.82369094,237.84,237.82,34.12282798]
[1758371378845,2.82369094,237.83,237.82,34.12282798]
[1758371379049,2.82369094,237.84,237.82,34.12282798]
[1758371379219,2.82369094,237.83,237.82,34.12282798]
[1758371379419,2.82369094,237.84,237.82,32.14]
[1758371379619,2.82369094,237.83,237.82,32.14]
[1758371379821,2.82369094,237.84,237.82,32.14]
[1758371380021,2.82310815,237.83,237.82,32.14]
[1758371380257,2.82310815,237.84,237.82,32.14]
[1758371380548,2.82310815,237.83,237.82,32.14]
[1758371380739,2.82310815,237.84,237.82,32.14]
[1758371380944,2.82310815,237.83,237.82,32.14]
[1758371381138,2.82310815,237.84,237.82,32.14]
[1758371381440,2.82310815,237.83,237.82,32.14]
[1758371381744,2.82310815,237.84,237.82,32.14]
[1758371381936,2.82310815,237.83,237.82,32.14]
[1758371382138,2.82310815,237.84,237.82,32.14]
[1758371382342,2.82310815,237.83,237.82,32.14]
[1758371382546,2.82310815,237.84,237.82,32.14]
[1758371382723,2.82310815,237.83,237.82,32.14]
[1758371382930,2.82310815,237.84,237.82,32.14]
[1758371383129,2.82310815,237.83,237.82,32.14]
[1758371383331,2.82310815,237.84,237.82,32.14]
[1758371383533,0.71,237.85,237.82,32.14]
[1758371383732,2.82276937,237.84,237.82,32.14]
[1758371383934,0.71,237.85,237.82,32.14]
[1758371384134,2.82276937,237.84,237.82,32.14]
[1758371384329,0.71,237.85,237.82,32.14]
[1758371384530,2.82259663,237.84,237.82,32.14]
[1758371384831,0.71,237.85,237.82,32.14]
[1758371385031,2.82253457,237.84,237.82,32.14]
[1758371385243,0.71,237.85,237.82,32.14]
[1758371385451,2.82242023,237.84,237.82,32.14]
[1758371385650,0.71,237.85,237.82,32.14]
[1758371385950,2.82228453,237.84,237.82,32.14]
[1758371386138,2.8219912,237.84,237.82,32.14]
[1758371387155,0.71,237.83,237.81,13.59559401]
[1758371387333,2.8219912,237.83,237.8,13.59559401]
[1758371387650,2.8219912,237.82,237.81,45.71559401]
[1758371387848,2.8219912,237.83,237.81,45.71559401]
[1758371388054,2.8219912,237.82,237.81,45.71559401]
[1758371392559,0.71,237.82,237.81,32.12]
[1758371392760,3.5319912,237.82,237.81,32.12]
[1758371393765,7.73694419,237.82,237.81,32.12]
[1758371395862,9.71977217,237.82,237.81,32.12]
[1758371398758,7.73694419,237.82,237.81,32.12]
[1758371401264,7.73605013,237.82,237.81,32.12]
[1758371404863,7.02605013,237.82,237.81,32.12]
[1758371405235,7.69605013,237.82,237.81,32.12]
[1758371408064,10.8253068,237.82,237.81,32.12]
[1758371408677,2.82109714,237.82,237.81,32.81]
[1758371408843,2.82109714,237.82,237.81,32.12]
[1758371409043,2.82109714,237.83,237.81,32.81]
[1758371409270,2.82109714,237.82,237.81,32.12]
[1758371409565,2.82109714,237.84,237.81,32.12]
[1758371409771,5.95070552,237.83,237.81,32.81]
[1758371409956,2.82109714,237.82,237.81,32.81]
[1758371410144,2.82109714,237.82,237.81,32.12]
[1758371410967,2.82109714,237.82,237.81,32.81]
[1758371411153,2.82109714,237.82,237.81,32.12]
[1758371411878,2.82109714,237.82,237.81,32.81]
[1758371412068,2.82109714,237.82,237.81,32.12]
[1758371412453,2.82109714,237.82,237.81,32.81]
[1758371412648,2.82109714,237.82,237.81,32.12]
[1758371413382,2.82109714,237.82,237.81,32.81]
[1758371414265,2.82109714,237.82,237.81,51.87974383]
[1758371414465,2.82109714,237.87,237.82,13.59559401]
[1758371414769,2.82109714,237.86,237.84,14.8647062]
[1758371414959,4.20365833,237.89,237.85,32.12]
[1758371415160,5.95363296,237.88,237.85,32.12]
[1758371415363,4.87365833,237.89,237.85,32.12]
[1758371415364,2.82194122,237.87,237.85,32.12]
[1758371415562,2.82194122,237.86,237.85,45.71559401]
[1758371415768,2.82194122,237.88,237.85,45.71559401]
[1758371416075,2.82194122,237.87,237.85,46.40559401]
[1758371416255,2.82194122,237.86,237.85,47.6747062]
[1758371416463,2.82194122,237.88,237.86,13.59559401]
[1758371416656,31.2,237.9,237.88,13.59559401]
[1758371416865,31.2,237.9,237.89,32.12]
[1758371417067,37.15122855,237.9,237.89,32.12]
[1758371418362,5.95122855,237.9,237.89,32.12]
[1758371418747,3.13052874,237.9,237.89,46.9847062]
[1758371418952,2.82069981,237.9,237.89,45.71559401]
[1758371419262,2.82069981,237.91,237.89,45.71559401]
[1758371419468,2.82069981,237.92,237.89,46.40559401]
[1758371419777,5.94854239,237.91,237.9,13.59559401]
[1758371419977,15.3044541,237.99,237.9,13.59559401]
[1758371419978,2.82069981,237.93,237.9,47.6747062]
[1758371420167,4.20257644,237.95,237.92,13.59559401]
[1758371420370,5.94515939,237.94,237.93,32.1]
[1758371420960,5.94515939,237.94,237.93,45.69559401]
[1758371421285,3.1269473,237.94,237.93,45.69559401]
[1758371421458,2.81821209,237.95,237.93,46.9647062]
[1758371421657,5.94515939,237.94,237.93,46.9647062]
[1758371421858,3.1269473,237.94,237.93,47.6547062]
[1758371422065,5.94515939,237.94,237.93,47.6547062]
[1758371422269,3.1269473,237.94,237.93,47.6547062]
[1758371422460,5.94318174,237.96,237.94,13.59559401]
[1758371422666,5.94318583,237.95,237.94,14.28559401]
[1758371422981,3.12497374,237.95,237.94,46.38559401]
[1758371423173,2.81821209,237.96,237.94,47.6547062]
[1758371423373,2.81821209,237.98,237.94,47.6547062]
[1758371423576,5.94249996,237.97,237.95,0.69]
[1758371423874,2.81821209,237.98,237.96,32.1]
[1758371424067,5.94298032,237.97,237.96,32.1]
[1758371424267,2.91821209,237.99,237.96,32.1]
[1758371424479,3.1241503,237.98,237.96,32.1]
[1758371424664,3.1241503,237.98,237.97,0.69]
[1758371424864,3.1241503,237.98,237.97,14.28559401]
[1758371425070,0.1,237.99,237.97,14.28559401]
[1758371425365,0.1,237.99,237.98,45.69559401]
[1758371425773,0.77,237.99,237.94,0.69]
[1758371425977,0.68,237.98,237.96,13.59559401]
[1758371426181,0.68,237.98,237.97,45.69559401]
[1758371427783,0.68,237.98,237.97,13.59559401]
[1758371427983,0.68,237.98,237.91,10.50785363]
[1758371427984,9.27140439,237.98,237.9,13.59559401]
[1758371428183,7.8875827,237.97,237.91,0.28432314]
[1758371428386,3.12025842,237.96,237.93,13.59559401]
[1758371428587,3.80025842,237.96,237.94,32.12]
[1758371428899,0.68,237.95,237.94,45.71559401]
[1758371429062,0.68,237.95,237.94,32.12]
[1758371429264,0.68,237.95,237.9,13.59559401]
[1758371429488,0.68,237.94,237.92,13.59559401]
[1758371429698,1.26911219,237.96,237.93,32.12]
[1758371430263,4.88272603,237.95,237.93,32.12]
[1758371430462,0.68,237.94,237.93,32.12]
[1758371430985,4.20272603,237.95,237.93,32.12]
[1758371431286,4.88272603,237.95,237.93,32.12]
[1758371433876,8.28970421,237.97,237.93,32.78]
[1758371434079,4.20256356,237.95,237.93,32.12]
[1758371434583,4.88256356,237.95,237.93,32.12]
[1758371435294,4.20238695,237.96,237.93,32.12]
[1758371435471,1.94911219,237.97,237.93,32.12]
[1758371435667,6.15133428,237.97,237.93,32.12]
[1758371435886,0.68,237.96,237.93,32.12]
[1758371436090,5.47133428,237.97,237.93,32.12]
[1758371436298,5.47133428,237.97,237.93,32.78]
[1758371436299,4.88222209,237.97,237.93,32.78]
[1758371437000,4.20222209,237.97,237.93,32.78]
[1758371437892,4.88222209,237.97,237.93,32.78]
[1758371439301,4.20222209,237.97,237.93,32.78]
[1758371439492,2.80769005,237.98,237.94,15.5247062]
[1758371439675,2.90769005,237.99,237.95,33.36911219]
[1758371440093,2.90769005,237.99,237.96,0.66]
[1758371440301,2.90769005,237.99,237.97,32.1]
[1758371441372,2.90769005,237.99,237.97,32.76]
[1758371441570,2.90769005,237.99,237.97,32.1]
[1758371441789,0.1,237.99,237.98,0.66]
[1758371442398,0.1,237.99,237.97,33.36911219]
[1758371442600,0.1,237.99,237.97,34.02911219]
[1758371443905,0.1,237.99,237.97,33.36911219]
[1758371444074,0.1,237.99,237.97,32.1]
[1758371449094,0.1,237.99,237.98,14.25559401]
[1758371449493,0.1,237.99,237.98,15.5247062]
[1758371450387,0.1,237.99,237.98,19.72673998]
[1758371456316,0.1,237.99,237.98,20.01106312]
[1758371460019,0.1,237.99,237.98,20.72125616]
[1758371463400,0.1,237.99,237.98,22.40500587]
[1758371465123,0.1,237.99,237.98,34.75005452]
[1758371468511,1e-08,237.99,237.98,36.72935975]
[1758371470308,0.1,238.03,237.98,36.72935975]
[1758371470309,0.1,238.03,238.02,44.93775558]
[1758371470512,0.1,238.03,238.02,79.13922238]
[1758371470724,0.1,238.03,238.02,80.24935514]
[1758371471118,0.1,238.03,238.02,81.93289225]
[1758371471320,0.1,238.03,238.02,86.13421986]
[1758371471508,0.1,238.03,238.02,85.7140871]
[1758371473829,0.1,238.03,238.02,85.0240871]
[1758371474130,0.1,238.03,238.02,52.9440871]
[1758371474335,0.75,238.03,238.02,85.0240871]
[1758371476122,0.1,238.03,238.02,85.0240871]
[1758371476530,0.75,238.03,238.02,15.27913112]
[1758371476741,0.75,238.03,238.0,1.97930523]
[1758371476942,0.65,238.02,238.01,45.67559401]
[1758371479241,0.65,238.02,237.99,13.87991715]
[1758371479416,0.65,238.01,238.0,45.67559401]
[1758371480928,0.65,238.01,238.0,47.93922238]
[1758371481494,0.65,238.01,238.0,52.14090305]
[1758371481946,0.1,238.03,238.01,13.59559401]
[1758371482118,0.75,238.03,238.02,45.67559401]
[1758371482318,0.1,238.03,238.02,45.67559401]
[1758371482709,0.1,238.03,238.02,52.14054999]
[1758371483125,0.1,238.03,238.02,47.93922238]
[1758371483126,0.75,238.03,238.02,47.93922238]
[1758371485555,0.1,238.03,238.02,52.14054999]
[1758371486853,0.1,238.03,238.02,52.86054999]
[1758371487557,0.1,238.03,238.02,52.14054999]
[1758371492859,0.1,238.03,238.02,52.86054999]
[1758371495768,0.1,238.03,238.02,52.14054999]
[1758371502939,0.79,238.03,238.02,18.08124476]
[1758371503266,0.79,238.03,238.02,52.14054999]
[1758371504673,0.79,238.03,238.02,13.87991715]
[1758371504875,0.79,238.03,238.02,13.59559401]
[1758371505174,0.79,238.03,238.02,45.67559401]
[1758371508076,0.79,238.03,238.02,13.59559401]
[1758371508372,0.79,238.03,238.02,45.67559401]
[1758371515880,0.75,238.03,238.02,45.67559401]
[1758371516774,0.1,238.03,238.02,45.67559401]
[1758371516955,0.1,238.03,238.02,47.65489924]
[1758371517153,0.1,238.03,238.02,52.84054999]
[1758371517457,0.1,238.03,238.02,52.14054999]
[1758371521898,0.1,238.03,238.02,51.42752729]
[1758371524695,0.1,238.03,238.02,13.87991715]
[1758371524696,0.81,238.03,238.02,13.87991715]
[1758371524872,0.81,238.03,238.02,45.95991715]
[1758371525206,0.1,238.03,238.02,45.95991715]
[1758371526376,0.1,238.03,238.02,50.16124476]
[1758371528281,0.1,238.03,238.02,51.42752729]
[1758371529597,0.1,238.03,238.02,50.16124476]
[1758371529787,0.1,238.03,238.02,51.42752729]
[1758371530091,0.1,238.03,238.02,13.87991715]
[1758371530395,0.81,238.03,238.02,45.95991715]
[1758371531393,0.81,238.03,238.02,50.16124476]
[1758371531587,0.1,238.03,238.02,50.16124476]
[1758371533501,0.1,238.03,238.02,51.42752729]
[1758371537678,0.81,238.03,238.02,51.42752729]
[1758371538204,0.81,238.03,238.02,47.22619968]
[1758371539098,0.81,238.03,238.02,13.59559401]
[1758371539294,0.81,238.03,238.02,45.67559401]
[1758371542804,0.81,238.03,238.02,13.59559401]
[1758371542989,0.81,238.03,238.02,45.67559401]
[1758371544005,0.81,238.03,238.02,13.59559401]
[1758371544311,0.81,238.03,238.02,45.67559401]
[1758371549200,3.63072805,238.03,238.02,45.67559401]
[1758371549399,0.81,238.03,238.02,45.67559401]
[1758371554632,0.1,238.03,238.02,45.67559401]
[1758371555026,0.81,238.03,238.02,45.67559401]
[1758371555932,0.1,238.03,238.02,45.67559401]
[1758371557150,0.1,238.03,238.02,13.59559401]
[1758371557151,0.81,238.03,238.02,13.59559401]
[1758371557335,6.27755165,238.03,237.98,13.59559401]
[1758371557540,7.93306397,238.02,237.99,32.08]
[1758371557855,3.53175605,238.01,237.99,32.08]
[1758371558053,0.71,238.0,237.99,32.08]
[1758371558942,4.91169641,238.0,237.98,13.59559401]
[1758371559137,4.20169641,238.0,237.99,32.08]
[1758371559852,4.91169641,238.0,237.99,32.08]
[1758371560152,4.91169641,238.0,237.98,13.59559401]
[1758371560354,0.71,237.99,237.98,13.59559401]
[1758371560528,0.71,237.99,237.98,45.67559401]
[1758371564753,7.02073448,238.01,237.98,46.37559401]
[1758371564958,4.20151975,238.01,237.98,46.37559401]
[1758371565347,5.46797894,238.02,237.98,46.37559401]
[1758371565348,4.91169641,238.02,237.98,46.37559401]
[1758371565654,35.50131055,238.03,237.99,0.7]
[1758371565859,36.21131055,238.03,238.0,32.08]
[1758371566040,48.84368733,238.03,238.0,32.08]
[1758371566242,0.71,238.02,238.0,32.08]
[1758371567334,0.71,238.01,238.0,32.08]
[1758371567559,48.13368733,238.03,238.0,32.08]
[1758371567759,0.71,238.02,238.0,32.08]
[1758371568649,0.1,238.03,238.01,15.56187654]
[1758371568837,0.71,238.02,237.97,13.87991715]
[1758371569039,0.71,238.01,237.99,13.59559401]
[1758371569260,8.38536342,238.03,238.0,32.08]
[1758371569848,0.71,238.02,238.0,32.08]
[1758371570045,0.71,238.01,238.0,32.08]
[1758371573769,4.91150413,238.01,238.0,32.08]
[1758371576974,4.91150413,238.01,237.96,13.19491023]
[1758371577160,0.66,238.0,237.97,45.67559401]
[1758371577354,0.66,237.99,237.97,45.67559401]
[1758371577747,4.86150413,238.01,237.97,45.67559401]
[1758371577948,0.66,238.0,237.97,45.67559401]
[1758371578245,4.20169505,238.0,237.97,45.67559401]
[1758371578447,4.20169505,238.0,237.97,46.38559401]
[1758371579166,4.20169505,238.0,237.98,0.71]
[1758371579378,4.20169505,238.0,237.99,32.08]
[1758371580259,4.86150413,238.01,237.99,32.08]
[1758371581797,4.86150413,238.01,237.96,1.26628253]
[1758371581798,0.68,238.0,237.96,13.59559401]
[1758371582083,5.59150413,238.0,237.97,32.08]
[1758371582389,4.88185722,237.99,237.97,32.08]
[1758371582586,0.68,237.98,237.97,32.08]
[1758371583084,0.68,237.98,237.95,2.19519669]
[1758371583085,1.94628253,237.98,237.95,2.19519669]
[1758371583282,0.68,237.97,237.96,32.08]
[1758371583468,8.99541117,237.98,237.96,32.08]
[1758371583675,9.67541117,237.98,237.96,32.08]
[1758371583880,10.38965067,237.98,237.96,32.08]
[1758371584185,5.59150413,237.98,237.96,32.08]
[1758371584399,12.61097638,237.98,237.96,32.08]
[1758371584694,9.79370546,237.98,237.96,32.08]
[1758371586069,11.77422749,237.98,237.96,32.08]
[1758371586266,4.91150413,237.98,237.96,32.08]